bitfinex-derivatives/quotes_BTCF0:USTF0_20250417
["timestamp","ask_amount","ask_price","bid_price","bid_amount"]
[1744849429536,0.5422792,84055.0,84054.0,0.15216713]
[1744849429838,0.5422792,84055.0,84054.0,0.03318653]
[1744849430644,0.5101792,84055.0,84054.0,0.03318653]
[1744849430837,0.1493792,84055.0,84054.0,0.15216713]
[1744849431042,0.1964145,84059.0,84058.0,0.1189749]
[1744849431246,0.5572145,84059.0,84058.0,0.1189749]
[1744849431842,0.5572145,84059.0,84058.0,0.1827749]
[1744849432044,0.1964145,84059.0,84058.0,0.1827749]
[1744849432241,0.5582145,84059.0,84058.0,0.1827749]
[1744849433033,0.5582145,84059.0,84058.0,0.0638]
[1744849433734,0.5572145,84059.0,84058.0,0.0658]
[1744849433934,0.5572145,84059.0,84058.0,0.0668]
[1744849434136,0.5572145,84059.0,84058.0,0.0648]
[1744849434337,0.5572145,84059.0,84058.0,0.0658]
[1744849435144,0.1189877,84049.0,84048.0,0.0001458]
[1744849435344,0.4897877,84049.0,84048.0,0.0001458]
[1744849435539,0.1189933,84045.0,84044.0,0.0632]
[1744849435844,0.1289933,84045.0,84044.0,0.0632]
[1744849437549,0.1289933,84045.0,84044.0,0.0642]
[1744849438446,0.0594931,84050.0,84049.0,0.1189863]
[1744849438744,0.3608,84070.0,84049.0,0.1189863]
[1744849438745,0.1784743,84054.0,84053.0,0.118979]
[1744849438949,0.1784743,84054.0,84053.0,0.128979]
[1744849439336,0.1784743,84054.0,84053.0,0.190879]
[1744849439737,0.0594903,84054.0,84053.0,0.190879]
[1744849440141,0.059489,84056.0,84055.0,0.1189792]
[1744849440347,0.059489,84056.0,84055.0,0.1289792]
[1744849441446,0.0594823,84066.0,84065.0,0.1784441]
[1744849442046,0.0594823,84066.0,84065.0,0.0594819]
[1744849442355,0.1189693,84063.0,84062.0,0.118969]
[1744849442651,0.1189693,84063.0,84062.0,0.222069]
[1744849442849,0.1189749,84058.0,84053.0,0.003]
[1744849443053,0.4797749,84058.0,84056.0,0.000108]
[1744849443840,0.5433749,84058.0,84056.0,0.000108]
[1744849444040,0.5433749,84058.0,84055.0,0.003]
[1744849444240,0.5443749,84058.0,84057.0,0.00425842]
[1744849444448,0.5443749,84058.0,84057.0,0.00417842]
[1744849444841,0.5443749,84058.0,84057.0,0.00425842]
[1744849445047,0.1189919,84046.0,84045.0,0.0331]
[1744849446163,0.1189933,84045.0,84044.0,0.0001458]
[1744849446339,0.1825933,84045.0,84044.0,0.0001458]
[1744849447248,0.1825933,84045.0,84044.0,0.0011458]
[1744849458283,0.1521933,84045.0,84044.0,0.0011458]
[1744849458569,0.1189883,84049.0,84048.0,0.1189891]
[1744849458967,0.1189891,84048.0,84047.0,0.0937]
[1744849459363,0.1189933,84045.0,84044.0,0.0011458]
[1744849459871,0.1249958,84047.0,84043.0,0.0051164]
[1744849459872,0.1189948,84044.0,84043.0,0.0051164]
[1744849460469,0.1189948,84044.0,84043.0,0.0359164]
[1744849461170,0.1844948,84044.0,84043.0,0.0359164]
[1744849461574,0.1844948,84044.0,84043.0,0.0359964]
[1744849467375,0.1844948,84044.0,84043.0,0.0051964]
[1744849467976,0.1844948,84044.0,84043.0,0.0051164]
[1744849468171,0.1844948,84044.0,84043.0,0.0051964]
[1744849469874,0.118999,84041.0,84040.0,0.000108]
[1744849470472,0.1190033,84038.0,84037.0,0.00017842]
[1744849470779,0.4798033,84038.0,84037.0,0.00017842]
[1744849473081,0.4886841,84038.0,84037.0,0.00417842]
[1744849474574,0.5191841,84038.0,84037.0,0.00417842]
[1744849483584,0.8799841,84038.0,84037.0,0.00417842]
[1744849484697,0.8799841,84038.0,84037.0,0.00425842]
[1744849494790,0.1583841,84038.0,84037.0,0.00425842]
[1744849495094,0.8799841,84038.0,84037.0,0.00425842]
[1744849496907,0.5191841,84038.0,84037.0,0.00425842]
[1744849502086,0.4886841,84038.0,84037.0,0.00425842]
[1744849502498,0.1190033,84038.0,84037.0,0.12326312]
[1744849502690,0.0595002,84040.0,84039.0,0.1190018]
[1744849503500,0.0595002,84040.0,84039.0,0.0315]
[1744849504001,0.0595002,84040.0,84039.0,0.0325]
[1744849504199,0.0595002,84040.0,84039.0,0.0345]
[1744849504407,0.0595002,84040.0,84039.0,0.0666]
[1744849505700,0.0595002,84040.0,84039.0,0.1856018]
[1744849505895,0.0595002,84040.0,84039.0,0.0666]
[1744849506195,0.1189949,84044.0,84043.0,0.1189936]
[1744849506602,0.05967032,84052.0,84043.0,0.0594981]
[1744849506903,0.1189929,84046.0,84045.0,0.1189928]
[1744849507102,0.1189929,84046.0,84045.0,0.1933928]
[1744849507295,0.00911121,84052.0,84045.0,0.0744]
[1744849507496,0.05967022,84052.0,84045.0,0.0744]
[1744849507695,0.1189919,84046.0,84045.0,0.0744]
[1744849507899,0.1189919,84046.0,84045.0,0.1933928]
[1744849508096,0.0594924,84051.0,84045.0,0.0744]
[1744849508403,0.1189906,84048.0,84047.0,0.1189891]
[1744849508606,0.1189906,84048.0,84047.0,0.1843891]
[1744849508999,0.1189906,84048.0,84047.0,0.0654]
[1744849510697,0.1189906,84048.0,84047.0,0.0664]
[1744849511493,0.1189906,84048.0,84047.0,0.0674]
[1744849511698,0.0594932,84050.0,84048.0,0.118989]
[1744849512206,0.0594932,84050.0,84049.0,0.0604]
[1744849513200,0.00017842,84052.0,84051.0,0.1189849]
[1744849513706,0.05967022,84052.0,84049.0,0.1198933]
[1744849513906,0.05967022,84052.0,84051.0,0.1189849]
[1744849514103,0.1189863,84050.0,84049.0,0.0604]
[1744849514611,0.1189863,84050.0,84049.0,0.0704]
[1744849516911,0.1189863,84050.0,84049.0,0.0714]
[1744849517211,0.1189863,84050.0,84049.0,0.0624]
[1744849517601,0.1189863,84050.0,84049.0,0.0614]
[1744849517802,0.1189863,84050.0,84049.0,0.1813877]
[1744849519613,0.1189863,84050.0,84049.0,0.1803877]
[1744849519801,0.1189863,84050.0,84049.0,0.1813877]
[1744849520408,0.1189863,84050.0,84049.0,0.0624]
[1744849520711,0.1189863,84050.0,84049.0,0.0614]
[1744849520906,0.1496863,84050.0,84049.0,0.0624]
[1744849526813,0.5104863,84050.0,84049.0,0.0624]
[1744849527210,0.5104863,84050.0,84049.0,0.002]
[1744849527411,0.1190033,84038.0,84035.0,0.01]
[1744849527616,0.4798033,84038.0,84034.0,0.41779683]
[1744849528211,0.5439033,84038.0,84034.0,0.41779683]
[1744849529005,0.5439033,84038.0,84035.0,0.0328]
[1744849529202,0.5449033,84038.0,84037.0,0.00417842]
[1744849529510,0.5449033,84038.0,84037.0,0.00717842]
[1744849529912,0.1841033,84038.0,84037.0,0.00717842]
[1744849530217,0.1841033,84038.0,84037.0,0.00517842]
[1744849530802,0.1831033,84038.0,84037.0,0.00317842]
[1744849531202,0.1831033,84038.0,84037.0,0.00417842]
[1744849540218,0.1831033,84038.0,84037.0,0.04417842]
[1744849540522,0.1831033,84038.0,84037.0,0.03437842]
[1744849542519,0.1831033,84038.0,84037.0,0.00417842]
[1744849546023,0.1831033,84038.0,84037.0,0.06837842]
[1744849546225,0.0641,84038.0,84037.0,0.18738312]
[1744849546525,0.1189983,84043.0,84042.0,0.118997]
[1744849546723,0.118994,84045.0,84044.0,0.1189934]
[1744849547119,0.1189919,84046.0,84045.0,0.118992]
[1744849547426,0.1189919,84046.0,84043.0,0.0594976]
[1744849547427,0.1189948,84044.0,84043.0,0.0594976]
[1744849547627,0.1189948,84044.0,84043.0,0.0694976]
[1744849548621,0.0311,84045.0,84044.0,0.1189948]
[1744849548821,0.0311,84045.0,84044.0,0.1501948]
[1744849549524,0.0594938,84049.0,84044.0,0.1501948]
[1744849549525,0.1500888,84049.0,84046.0,0.0594953]
[1744849549733,0.1500888,84049.0,84048.0,0.1189891]
[1744849550629,0.1189891,84048.0,84047.0,0.1501899]
[1744849552333,0.1189891,84048.0,84047.0,0.1521899]
[1744849552832,0.1189891,84048.0,84047.0,0.1531899]
[1744849553430,0.1189891,84048.0,84047.0,0.1631899]
[1744849554830,0.1189891,84048.0,84047.0,0.0442]
[1744849555030,0.1819891,84048.0,84047.0,0.0442]
[1744849556331,0.1819891,84048.0,84047.0,0.1631905]
[1744849557435,0.1819891,84048.0,84047.0,0.1531905]
[1744849557835,0.063,84048.0,84047.0,0.1531905]
[1744849558033,0.0311,84049.0,84048.0,0.1189891]
[1744849558229,0.0311,84049.0,84048.0,0.1589891]
[1744849559035,0.0311,84049.0,84048.0,0.1599891]
[1744849559342,0.1189853,84051.0,84050.0,0.1189863]
[1744849559940,0.1492853,84051.0,84050.0,0.1189863]
[1744849560529,0.0303,84051.0,84050.0,0.1289863]
[1744849560936,0.1492849,84051.0,84050.0,0.1289863]
[1744849561136,0.1492849,84051.0,84050.0,0.1299863]
[1744849561527,0.1492849,84051.0,84050.0,0.1309863]
[1744849562137,0.1492849,84051.0,84050.0,0.1299863]
[1744849562340,0.1492849,84051.0,84050.0,0.1309863]
[1744849563137,0.1492849,84051.0,84050.0,0.1637863]
[1744849564243,0.1492849,84051.0,84050.0,0.1946863]
[1744849564941,0.1492849,84051.0,84050.0,0.012]
[1744849565136,0.1492849,84051.0,84050.0,0.002]
[1744849566742,0.1492849,84051.0,84050.0,0.033]
[1744849568145,0.0303,84051.0,84050.0,0.1832863]
[1744849568539,0.0303,84051.0,84050.0,0.1932863]
[1744849569735,0.1492849,84051.0,84050.0,0.1932863]
[1744849569940,0.1492849,84051.0,84050.0,0.0743]
[1744849570247,0.1823849,84051.0,84050.0,0.012]
[1744849570940,0.1823849,84051.0,84050.0,0.002]
[1744849572245,0.1823849,84051.0,84050.0,0.0338]
[1744849572436,0.1823849,84051.0,84050.0,0.1527863]
[1744849573837,0.1823849,84051.0,84050.0,0.1627863]
[1744849574040,0.0303,84051.0,84050.0,0.1627863]
[1744849574243,0.00017842,84052.0,84051.0,0.1189849]
[1744849574444,0.00017842,84052.0,84051.0,0.5850849]
[1744849574647,0.11916182,84052.0,84051.0,0.5850849]
[1744849574950,0.11916182,84052.0,84051.0,0.5544849]
[1744849575150,0.18156182,84052.0,84051.0,0.5215849]
[1744849577446,0.18156182,84052.0,84051.0,0.5225849]
[1744849577946,0.18156182,84052.0,84051.0,0.5235849]
[1744849578447,0.18156182,84052.0,84051.0,0.5145849]
[1744849579455,0.00017842,84052.0,84051.0,0.5245849]
[1744849579837,0.03227842,84052.0,84051.0,0.5235849]
[1744849580042,0.03227842,84052.0,84051.0,0.5245849]
[1744849580651,0.15126182,84052.0,84051.0,0.5245849]
[1744849581753,0.15126182,84052.0,84051.0,0.1637849]
[1744849582056,0.15126182,84052.0,84051.0,0.5145849]
[1744849582554,0.03227842,84052.0,84051.0,0.5145849]
[1744849582755,0.00017842,84052.0,84051.0,0.5145849]
[1744849583552,0.00017842,84052.0,84051.0,0.5245849]
[1744849585343,0.0309,84063.0,84062.0,0.1189693]
[1744849585541,0.0919829,84066.0,84065.0,0.118965]
[1744849585742,0.0594829,84066.0,84065.0,0.118965]
[1744849586347,0.0903829,84066.0,84065.0,0.118965]
[1744849586652,0.0794,84086.0,84071.0,0.1189565]
[1744849586853,0.1189475,84078.0,84071.0,0.2689565]
[1744849587059,0.0301,84073.0,84071.0,0.2689565]
[1744849587251,0.0794,84086.0,84073.0,0.1189537]
[1744849587451,0.01245984,84078.0,84073.0,0.2689537]
[1744849587651,0.0301,84077.0,84073.0,0.2689537]
[1744849588251,0.00905215,84091.0,84073.0,0.1591102]
[1744849588453,0.00905215,84091.0,84086.0,0.1189353]
[1744849588647,0.04509582,84087.0,84082.0,0.0594699]
[1744849588852,0.1503385,84086.0,84085.0,0.1189363]
[1744849589552,0.1189413,84082.0,84081.0,0.118942]
[1744849590157,0.0594688,84085.0,84083.0,0.1189386]
[1744849590356,0.033,84084.0,84083.0,0.1189386]
[1744849590557,0.1519382,84084.0,84083.0,0.1189386]
[1744849590759,0.033,84084.0,84083.0,0.1189386]
[1744849591261,0.1519382,84084.0,84083.0,0.1189386]
[1744849591562,0.1189398,84083.0,84082.0,0.1189396]
[1744849591863,0.1501398,84083.0,84082.0,0.1189396]
[1744849592863,0.1511398,84083.0,84082.0,0.1189396]
[1744849593366,0.1531398,84083.0,84082.0,0.1189396]
[1744849594166,0.0342,84083.0,84082.0,0.1189396]
[1744849594460,0.00017842,84094.0,84084.0,0.059469]
[1744849594666,0.0312,84091.0,84090.0,0.1189297]
[1744849595667,0.16232457,84091.0,84090.0,0.1515297]
[1744849596056,0.16232457,84091.0,84090.0,0.0326]
[1744849596257,0.118933,84088.0,84083.0,0.0594698]
[1744849596457,0.0626,84087.0,84084.0,0.0911688]
[1744849596657,0.0626,84087.0,84084.0,0.1011688]
[1744849596859,0.0626,84087.0,84086.0,0.1189353]
[1744849597068,0.0626,84087.0,84086.0,0.1289353]
[1744849597253,0.1815339,84087.0,84086.0,0.1289353]
[1744849597659,0.0626,84087.0,84086.0,0.1289353]
[1744849597855,0.0308,84087.0,84086.0,0.1289353]
[1744849598170,0.002,84091.0,84090.0,0.1189297]
[1744849598363,0.09186,84097.0,84090.0,0.0594643]
[1744849598564,0.01247933,84095.0,84093.0,0.1189254]
[1744849598761,0.11910242,84094.0,84093.0,0.1189254]
[1744849598962,0.00017842,84094.0,84093.0,0.1189254]
[1744849599163,0.00017842,84094.0,84093.0,0.1491254]
[1744849599664,0.00517842,84094.0,84093.0,0.1501254]
[1744849600067,0.12410242,84094.0,84093.0,0.1803254]
[1744849600374,0.12610242,84094.0,84093.0,0.1803254]
[1744849603271,0.00717842,84094.0,84093.0,0.1803254]
[1744849603674,0.03997842,84094.0,84093.0,0.1803254]
[1744849607874,0.00717842,84094.0,84093.0,0.1803254]
[1744849608975,0.03977842,84094.0,84093.0,0.1803254]
[1744849609174,0.19090242,84094.0,84093.0,0.1803254]
[1744849610277,0.07197842,84094.0,84093.0,0.1803254]
[1744849610676,0.03977842,84094.0,84093.0,0.1803254]
[1744849611279,0.15870242,84094.0,84093.0,0.1803254]
[1744849611483,0.03977842,84094.0,84093.0,0.1803254]
[1744849611675,0.00717842,84094.0,84093.0,0.1803254]
[1744849611976,0.118905,84108.0,84104.0,0.1189099]
[1744849612178,0.0594515,84109.0,84104.0,0.1189099]
[1744849612372,0.1189074,84106.0,84105.0,0.118907]
[1744849612572,0.1189074,84106.0,84105.0,0.180107]
[1744849612980,0.1517056,84107.0,84106.0,0.118907]
[1744849613189,0.0328,84107.0,84106.0,0.180107]
[1744849613782,0.0328,84107.0,84106.0,0.174107]
[1744849614181,0.0328,84107.0,84106.0,0.171107]
[1744849614481,0.0323,84110.0,84109.0,0.1189028]
[1744849614678,0.033,84111.0,84110.0,0.1189014]
[1744849614974,0.00017842,84114.0,84113.0,0.1148971]
[1744849615380,0.00017842,84114.0,84113.0,0.1118971]
[1744849615867,0.00017842,84114.0,84113.0,0.1660971]
[1744849616682,0.00317842,84114.0,84113.0,0.1660971]
[1744849618669,0.00017842,84114.0,84113.0,0.1660971]
[1744849619887,0.00875211,84130.0,84122.0,0.1188844]
[1744849620082,0.0314,84126.0,84123.0,0.118883]
[1744849620383,0.0646,84126.0,84123.0,0.118883]
[1744849620785,0.0314,84126.0,84123.0,0.118883]
[1744849621184,0.0328,84125.0,84123.0,0.118883]
[1744849621681,0.0328,84125.0,84123.0,0.149183]
[1744849622088,0.008,84124.0,84123.0,0.149183]
[1744849623493,0.008,84124.0,84123.0,0.16707308]
[1744849623695,0.0405,84124.0,84123.0,0.16707308]
[1744849624082,0.072,84124.0,84123.0,0.16707308]
[1744849624485,0.0716,84124.0,84123.0,0.16707308]
[1744849624988,0.0686,84124.0,84123.0,0.150183]
[1744849625193,0.0361,84124.0,84123.0,0.150183]
[1744849627489,0.118864,84137.0,84131.0,0.1188717]
[1744849627690,0.1188655,84136.0,84131.0,0.4796717]
[1744849627891,0.0332,84137.0,84131.0,0.4796717]
[1744849627892,0.1188686,84134.0,84131.0,0.4796717]
[1744849628093,0.0332,84137.0,84131.0,0.4796717]
[1744849628488,0.00111652,84132.0,84131.0,0.4796717]
[1744849628899,0.00111652,84132.0,84131.0,0.5128717]
[1744849629098,0.00111652,84132.0,84131.0,0.6628717]
[1744849629291,0.00011652,84132.0,84131.0,0.6648717]
[1744849629987,0.00011652,84132.0,84131.0,0.3040717]
[1744849630390,0.00011652,84132.0,84131.0,0.3050717]
[1744849635403,0.00011652,84132.0,84131.0,0.3051517]
[1744849638002,0.14988682,84132.0,84131.0,0.3051517]
[1744849639006,0.14988682,84132.0,84131.0,0.2719517]
[1744849639192,0.76068682,84132.0,84131.0,0.00308]
[1744849640196,0.1188915,84117.0,84116.0,0.01]
[1744849640390,0.1188929,84116.0,84114.0,0.1188948]
[1744849640591,0.1518929,84116.0,84110.0,0.21779103]
[1744849640796,0.1518929,84116.0,84114.0,0.1188957]
[1744849641092,0.1518929,84116.0,84106.0,0.000108]
[1744849641394,0.1518929,84116.0,84111.0,0.1188999]
[1744849641698,0.1518929,84116.0,84114.0,0.1188955]
[1744849642200,0.1833929,84116.0,84115.0,0.00925831]
[1744849642499,0.1833929,84116.0,84115.0,0.12815261]
[1744849642691,0.1833929,84116.0,84115.0,0.12807261]
[1744849643498,0.1833929,84116.0,84115.0,0.12207261]
[1744849643702,0.1833929,84116.0,84115.0,0.12507261]
[1744849643903,0.1833929,84116.0,84115.0,0.12207261]
[1744849644100,0.1833929,84116.0,84115.0,0.00217831]
[1744849644305,0.1833929,84116.0,84115.0,0.00517831]
[1744849645807,0.1833929,84116.0,84115.0,0.00525831]
[1744849646401,0.1833929,84116.0,84115.0,0.00517831]
[1744849646906,0.1833929,84116.0,84115.0,0.00525831]
[1744849648403,0.5441929,84116.0,84115.0,0.00525831]
[1744849648903,0.5441929,84116.0,84115.0,0.00517831]
[1744849649099,0.5441929,84116.0,84115.0,0.00525831]
[1744849651709,0.5441929,84116.0,84115.0,0.00517831]
[1744849652309,0.0645,84116.0,84115.0,0.12407261]
[1744849653015,0.0645,84116.0,84115.0,0.18777261]
[1744849653016,0.1833929,84116.0,84115.0,0.18777261]
[1744849653412,0.1833929,84116.0,84115.0,0.19777261]
[1744849653613,0.1833929,84116.0,84115.0,0.19785261]
[1744849654704,0.1833929,84116.0,84115.0,0.19777261]
[1744849655114,0.1833929,84116.0,84115.0,0.19785261]
[1744849658008,0.1833929,84116.0,84115.0,0.18785261]
[1744849669120,0.1833929,84116.0,84115.0,0.15585261]
[1744849673722,0.1833929,84116.0,84115.0,0.00525831]
[1744849674118,0.1189014,84110.0,84109.0,0.000108]
[1744849674414,0.4797014,84110.0,84109.0,0.000108]
[1744849674919,0.1189155,84100.0,84099.0,0.0307]
[1744849675115,0.1189155,84100.0,84099.0,0.0407]
[1744849675726,0.1828155,84100.0,84099.0,0.0407]
[1744849675916,0.1828155,84100.0,84095.0,0.03831323]
[1744849675917,0.1189212,84096.0,84095.0,0.00511323]
[1744849676315,0.1189268,84092.0,84072.0,0.72436778]
[1744849676514,0.1189339,84087.0,84082.0,0.0318]
[1744849676718,0.0594661,84089.0,84082.0,0.0318]
[1744849676916,0.1289396,84083.0,84082.0,0.0318]
[1744849677116,0.1189396,84085.0,84082.0,0.0318]
[1744849677321,0.1509382,84084.0,84083.0,0.0309]
[1744849677723,0.1828382,84084.0,84083.0,0.0627]
[1744849678024,0.1828382,84084.0,84083.0,0.06278]
[1744849678520,0.1828382,84084.0,84083.0,0.06678]
[1744849679727,0.1838382,84084.0,84083.0,0.07478]
[1744849680121,0.0649,84084.0,84083.0,0.1937196]
[1744849680316,0.033,84084.0,84083.0,0.3437196]
[1744849680525,0.033,84084.0,84083.0,0.1937196]
[1744849680829,0.1519382,84084.0,84083.0,0.1936396]
[1744849681228,0.1519382,84084.0,84083.0,0.1937196]
[1744849681529,0.1519382,84084.0,84083.0,0.07478]
[1744849682431,0.1519382,84084.0,84083.0,0.04388]
[1744849694528,0.1189495,84076.0,84075.0,0.00017831]
[1744849694828,0.1189495,84076.0,84075.0,0.03237831]
[1744849695424,0.1820495,84076.0,84075.0,0.03237831]
[1744849695828,0.1830495,84076.0,84075.0,0.04237831]
[1744849696220,0.1830495,84076.0,84075.0,0.04837831]
[1744849697424,0.1830495,84076.0,84075.0,0.04845831]
[1744849697630,0.1830495,84076.0,84075.0,0.04837831]
[1744849697924,0.1830495,84076.0,84075.0,0.04845831]
[1744849698628,0.5438495,84076.0,84075.0,0.04845831]
[1744849702033,0.118958,84070.0,84069.0,0.00511482]
[1744849702633,0.0594804,84068.0,84063.0,0.0325]
[1744849702828,0.118965,84065.0,84061.0,0.0305]
[1744849703031,0.118965,84065.0,84060.0,0.00053144]
[1744849703243,0.180765,84065.0,84060.0,0.00053144]
[1744849703430,0.1189707,84061.0,84060.0,0.00053144]
[1744849704438,0.1807707,84061.0,84060.0,0.00053144]
[1744849704829,0.1189735,84059.0,84058.0,0.00017842]
[1744849705431,0.1189735,84059.0,84058.0,0.00025842]
[1744849705734,0.1189735,84059.0,84058.0,0.00017842]
[1744849706130,0.1189735,84059.0,84058.0,0.00025842]
[1744849706327,0.1189735,84059.0,84058.0,0.00017842]
[1744849706538,0.1189735,84059.0,84058.0,0.00425842]
[1744849706839,0.1199735,84059.0,84058.0,0.01125842]
[1744849707042,0.1199735,84059.0,84058.0,0.01117842]
[1744849707432,0.1199735,84059.0,84058.0,0.01125842]
[1744849707839,0.1199735,84059.0,84058.0,0.01117842]
[1744849708246,0.1199735,84059.0,84058.0,0.01125842]
[1744849708634,0.1199735,84059.0,84058.0,0.01117842]
[1744849708835,0.1189849,84051.0,84050.0,0.0326]
[1744849709038,0.1189891,84048.0,84047.0,0.000108]
[1744849709237,0.1189891,84048.0,84047.0,0.1129]
[1744849709840,0.1278573,84048.0,84047.0,0.11298]
[1744849710644,0.5506573,84048.0,84047.0,0.08008]
[1744849710847,0.1189933,84045.0,84044.0,0.0632]
[1744849711145,0.1189948,84044.0,84043.0,0.0051164]
[1744849711945,0.1811948,84044.0,84043.0,0.0051164]
[1744849712537,0.1821948,84044.0,84043.0,0.0091164]
[1744849712940,0.1821948,84044.0,84043.0,0.0091964]
[1744849713647,0.1821948,84044.0,84043.0,0.0091164]
[1744849714141,0.1821948,84044.0,84043.0,0.0091964]
[1744849715048,0.1516948,84044.0,84043.0,0.1281926]
[1744849715346,0.001,84044.0,84043.0,0.3081926]
[1744849715647,0.001,84044.0,84043.0,0.3692926]
[1744849724944,0.1189798,84055.0,84054.0,0.1189792]
[1744849725254,0.1189744,84064.0,84063.0,0.1784488]
[1744849725762,0.1189693,84062.0,84061.0,0.1802698]
[1744849727352,0.0314,84063.0,84062.0,0.1189693]
[1744849727647,0.1503679,84063.0,84062.0,0.1814693]
[1744849728350,0.1808679,84063.0,84062.0,0.1814693]
[1744849728943,0.1818679,84063.0,84062.0,0.1824693]
[1744849729151,0.0629,84063.0,84062.0,0.1834693]
[1744849731658,0.1818679,84063.0,84062.0,0.1834693]
[1744849731954,0.2605,84063.0,84062.0,0.1834693]
[1744849732155,0.0629,84063.0,84062.0,0.1834693]
[1744849734256,0.1818679,84063.0,84062.0,0.1834693]
[1744849736663,0.1818679,84063.0,84062.0,0.0645]
[1744849737556,0.1818679,84063.0,84062.0,0.002]
[1744849739061,0.1818679,84063.0,84062.0,0.0336]
[1744849740162,0.1818679,84063.0,84062.0,0.1525693]
[1744849740863,0.1818679,84063.0,84062.0,0.0336]
[1744849741557,0.0629,84063.0,84062.0,0.1525693]
[1744849742060,0.1818679,84063.0,84062.0,0.1525693]
[1744849743058,0.0324,84063.0,84062.0,0.1525693]
[1744849743768,0.1513679,84063.0,84062.0,0.1525693]
[1744849744155,0.0324,84063.0,84062.0,0.1525693]
[1744849744762,0.1513679,84063.0,84062.0,0.1525693]
[1744849747965,0.1513679,84063.0,84062.0,0.1625693]
[1744849749167,0.1513679,84063.0,84062.0,0.012]
[1744849749366,0.1513679,84063.0,84062.0,0.01208]
[1744849749558,0.1513679,84063.0,84062.0,0.00208]
[1744849750962,0.1513679,84063.0,84056.0,0.000108]
[1744849750963,0.1189764,84057.0,84056.0,0.000108]
[1744849751163,0.1189806,84054.0,84052.0,0.3608]
[1744849751672,0.3165806,84054.0,84052.0,0.3608]
[1744849752272,0.3814806,84054.0,84053.0,0.11916042]
[1744849752471,0.3824806,84054.0,84053.0,0.12016042]
[1744849753066,0.3824806,84054.0,84053.0,0.12024042]
[1744849753263,0.0659,84054.0,84053.0,0.12024042]
[1744849753665,0.0659,84054.0,84053.0,0.15274042]
[1744849754066,0.0659,84054.0,84053.0,0.18554042]
[1744849754373,0.0659,84054.0,84053.0,0.18754042]
[1744849754573,0.033,84054.0,84053.0,0.18746042]
[1744849755071,0.033,84054.0,84053.0,0.18754042]
[1744849755257,0.1519806,84054.0,84053.0,0.18754042]
[1744849755465,0.001,84054.0,84053.0,0.35746042]
[1744849756368,0.001,84054.0,84053.0,0.35754042]
[1744849758176,0.1199806,84054.0,84053.0,0.35754042]
[1744849761380,0.001,84054.0,84053.0,0.35754042]
[1744849762378,0.0325,84054.0,84053.0,0.35754042]
[1744849764281,0.1514806,84054.0,84053.0,0.35754042]
[1744849765580,0.0325,84054.0,84053.0,0.35754042]
[1744849768283,0.1784489,84066.0,84065.0,0.118965]
[1744849768483,0.0594819,84066.0,84065.0,0.118965]
[1744849768674,0.0317,84069.0,84068.0,0.1189608]
[1744849768881,0.00017842,84070.0,84069.0,0.1189594]
[1744849769080,0.00017842,84070.0,84069.0,0.6799594]
[1744849770885,0.03,84079.0,84069.0,0.561]
[1744849771185,0.03,84079.0,84078.0,0.4797466]
[1744849771988,0.03,84079.0,84078.0,0.5422466]
[1744849772285,0.032,84079.0,84078.0,0.5422466]
[1744849772678,0.03,84079.0,84078.0,0.5422466]
[1744849772879,0.032,84079.0,84078.0,0.5432466]
[1744849773284,0.032,84079.0,84078.0,0.5442466]
[1744849773485,0.1835452,84079.0,84078.0,0.3628]
[1744849773694,0.2166452,84079.0,84078.0,0.3628]
[1744849774088,0.2166452,84079.0,84078.0,0.4817466]
[1744849774285,0.2166452,84079.0,84078.0,0.3628]
[1744849774484,0.2166452,84079.0,84078.0,0.36288]
[1744849775098,0.2166452,84079.0,84078.0,0.3628]
[1744849775486,0.2166452,84079.0,84078.0,0.36288]
[1744849776986,0.2166452,84079.0,84078.0,0.3628]
[1744849777197,0.2166452,84079.0,84078.0,0.36288]
[1744849778190,0.2166452,84079.0,84078.0,0.1210266]
[1744849780198,0.2166452,84079.0,84078.0,0.00208]
[1744849780998,0.5774452,84079.0,84078.0,0.00208]
[1744849782097,0.7750452,84079.0,84078.0,0.00208]
[1744849782305,0.5774452,84079.0,84078.0,0.00208]
[1744849785299,0.5774452,84079.0,84078.0,0.00208]
[1744849787306,0.2166452,84079.0,84078.0,0.00208]
[1744849788407,0.2166452,84079.0,84078.0,0.1210266]
[1744849788598,0.2166452,84079.0,84078.0,0.00208]
[1744849789208,0.2166452,84079.0,84078.0,0.03508]
[1744849791006,0.2166452,84079.0,84078.0,0.00208]
[1744849794906,0.2166452,84079.0,84078.0,0.002]
[1744849796114,0.2166452,84079.0,84078.0,0.00208]
[1744849796614,0.2166452,84079.0,84078.0,0.06488]
[1744849798105,0.2166452,84079.0,84078.0,0.03478]
[1744849798917,0.1509452,84079.0,84078.0,0.03478]
[1744849799412,0.1509452,84079.0,84078.0,0.1839266]
[1744849799611,0.1209452,84079.0,84078.0,0.1839266]
[1744849799917,0.002,84079.0,84078.0,0.1839266]
[1744849801108,0.1209452,84079.0,84078.0,0.1839266]
[1744849803314,0.0594679,84086.0,84083.0,0.1784058]
[1744849803520,0.1189367,84085.0,84084.0,0.093]
[1744849803916,0.00017842,84087.0,84086.0,0.1189353]
[1744849804417,0.1189222,84097.0,84096.0,0.1189198]
[1744849804720,0.22363747,84097.0,84096.0,0.1189198]
[1744849805219,0.1189311,84091.0,84090.0,0.0594637]
[1744849806320,0.0594661,84089.0,84082.0,0.05964882]
[1744849806617,0.1498297,84090.0,84089.0,0.1189311]
[1744849807309,0.02135537,84097.0,84089.0,0.1189311]
[1744849807310,0.0309,84094.0,84093.0,0.1189254]
[1744849807505,0.149824,84094.0,84093.0,0.1189254]
[1744849807914,0.149824,84094.0,84093.0,0.2389254]
[1744849808513,0.0309,84094.0,84093.0,0.2389254]
[1744849808816,0.01235537,84097.0,84096.0,0.1189212]
[1744849809115,0.1189198,84097.0,84096.0,0.1189212]
[1744849810113,0.1562184,84098.0,84097.0,0.1189198]
[1744849810320,0.118924,84094.0,84093.0,0.3608]
[1744849810517,0.118924,84094.0,84093.0,0.01]
[1744849810713,0.1189325,84088.0,84087.0,0.000108]
[1744849811323,0.1189367,84085.0,84082.0,0.00017842]
[1744849811710,0.0323,84086.0,84085.0,0.1189367]
[1744849812114,0.1189367,84085.0,84084.0,0.36088]
[1744849812317,0.1502367,84085.0,84084.0,0.4798182]
[1744849812623,0.1502367,84085.0,84084.0,0.4797382]
[1744849813017,0.1502367,84085.0,84084.0,0.36088]
[1744849813514,0.1502367,84085.0,84084.0,8e-05]
[1744849814009,0.5110367,84085.0,84084.0,8e-05]
[1744849814513,0.5448367,84085.0,84084.0,0.00108]
[1744849814709,0.5448367,84085.0,84084.0,0.001]
[1744849814911,0.5448367,84085.0,84084.0,0.00108]